fUSD/lending_fUSD_20251212
["ID","MTS","AMOUNT","RATE_DAILY","PERIOD"]
[398340610,1765538080835,-4738.09,0.00040547,30]
[398340611,1765538080845,-1327.17,0.00040547,30]
[398340612,1765538080854,-500.0,0.00040547,30]
[398340613,1765538080863,-3631.76,0.00040547,30]
[398340614,1765538080876,-500.0,0.00040547,30]
[398340615,1765538080886,-500.0,0.00040547,30]
[398340616,1765538080895,-500.0,0.00040547,30]
[398340617,1765538080906,-963.98,0.00040547,30]
[398340618,1765538080915,-634.95,0.00040547,30]
[398340619,1765538080925,-3329.8,0.00040547,30]
[398340620,1765538080935,-500.0,0.00040547,30]
[398340621,1765538080944,-500.0,0.00040547,30]
[398340622,1765538080954,-1124.07,0.00040547,30]
[398340623,1765538080964,-500.0,0.00040547,30]
[398340624,1765538080974,-876.92,0.00040547,30]
[398340625,1765538080984,-500.0,0.00040547,30]
[398340626,1765538080994,-500.0,0.00040547,30]
[398340627,1765538081004,-500.0,0.00040547,30]
[398340628,1765538081013,-500.0,0.00040547,30]
[398340629,1765538081023,-500.0,0.00040547,30]
[398340630,1765538081033,-500.0,0.00040547,30]
[398340631,1765538081043,-500.0,0.00040547,30]
[398340632,1765538081053,-500.0,0.00040547,30]
[398340633,1765538081062,-500.0,0.00040547,30]
[398340634,1765538081071,-613.85,0.00040547,30]
[398340635,1765538081081,-705.22,0.00040547,30]
[398340636,1765538081091,-500.0,0.00040547,30]
[398340637,1765538081100,-601.44,0.00040547,30]
[398340638,1765538081110,-680.86,0.00040547,30]
[398340639,1765538081119,-500.0,0.00040547,30]
[398340640,1765538081129,-500.0,0.00040547,30]
[398340641,1765538081138,-1255.36,0.00040547,30]
[398340642,1765538081147,-500.0,0.00040547,30]
[398340643,1765538081158,-500.0,0.00040547,30]
[398340644,1765538081167,-757.92,0.00040547,30]
[398340645,1765538081177,-500.0,0.00040547,30]
[398340646,1765538081187,-976.99,0.00040547,30]
[398340647,1765538081197,-681.9,0.00040547,30]
[398340648,1765538081207,-500.0,0.00040547,30]
[398340649,1765538081216,-766.68,0.00040547,30]
[398340650,1765538081226,-500.0,0.00040547,30]
[398340651,1765538081236,-500.0,0.00040547,30]
[398340652,1765538081245,-500.0,0.00040547,30]
[398340653,1765538081255,-345.79893021,0.00040547,30]
[398340654,1765538081264,-500.0,0.00040547,30]
[398340655,1765538081274,-500.0,0.00040547,30]
[398340656,1765538081283,-820.89,0.00040547,30]
[398340657,1765538081293,-1425.77,0.00040547,30]
[398340658,1765538081303,-2237.4,0.00040547,30]
[398340659,1765538081312,-673.29,0.00040547,30]
[398340660,1765538081322,-574.67,0.00040547,30]
[398340661,1765538081332,-500.0,0.00040547,30]
[398340662,1765538081341,-500.0,0.00040547,30]
[398340663,1765538081351,-1020.61,0.00040547,30]
[398340664,1765538081360,-500.0,0.00040547,30]
[398340665,1765538081369,-749.57,0.00040547,30]
[398340666,1765538081379,-500.0,0.00040547,30]
[398340667,1765538081388,-558.5,0.00040547,30]
[398340668,1765538081398,-500.0,0.00040547,30]
[398340669,1765538081410,-500.0,0.00040547,30]
[398340670,1765538081420,-1224.23,0.00040547,30]
[398340671,1765538081430,-628.4,0.00040547,30]
[398340672,1765538081440,-500.0,0.00040547,30]
[398340673,1765538081450,-500.0,0.00040547,30]
[398340674,1765538081465,-1487.24,0.00040547,30]
[398340675,1765538081475,-500.0,0.00040547,30]
[398340676,1765538081487,-500.0,0.00040547,30]
[398340677,1765538081497,-500.0,0.00040547,30]
[398340678,1765538081507,-500.0,0.00040547,30]
[398340679,1765538081518,-643.83,0.00040547,30]
[398340680,1765538081529,-500.0,0.00040547,30]
[398340681,1765538081539,-1267.76,0.00040547,30]
[398340682,1765538081549,-500.0,0.00040547,30]
[398340683,1765538081558,-554.79,0.00040547,30]
[398340684,1765538081568,-180.85207641,0.00040547,30]
[398340685,1765538081578,-500.13,0.00040547,30]
[398340686,1765538081588,-500.0,0.00040547,30]
[398340687,1765538081598,-543.72,0.00040547,30]
[398340688,1765538081608,-1502.85,0.00040547,30]
[398340689,1765538081617,-901.37,0.00040547,30]
[398340690,1765538081627,-865.46,0.00040547,30]
[398340691,1765538081638,-1483.56,0.00040547,30]
[398340692,1765538081648,-500.0,0.00040547,30]
[398340693,1765538081659,-500.0,0.00040547,30]
[398340694,1765538081668,-249.98012336,0.00040547,30]
[398340695,1765538081678,-500.0,0.00040547,30]
[398340696,1765538081688,-2056.86,0.00040547,30]
[398340697,1765538081698,-506.62412419,0.00040547,30]
[398340698,1765538081707,-500.0,0.00040547,30]
[398340699,1765538081717,-598.84,0.00040547,30]
[398340700,1765538081727,-500.0,0.00040547,30]
[398340701,1765538081736,-500.0,0.00040547,30]
[398340702,1765538081746,-500.0,0.00040547,30]
[398340703,1765538081755,-500.0,0.00040547,30]
[398340704,1765538081765,-500.0,0.00040547,30]
[398340705,1765538081775,-500.0,0.00040547,30]
[398340706,1765538081784,-500.0,0.00040547,30]
[398340707,1765538081793,-500.0,0.00040547,30]
[398340708,1765538081803,-500.0,0.00040547,30]
[398340709,1765538081812,-2287.8,0.00040547,30]
[398340710,1765538081822,-500.0,0.00040547,30]
[398340711,1765538081832,-500.0,0.00040547,30]
[398340712,1765538081842,-500.0,0.00040547,30]
[398340713,1765538081851,-555.94,0.00040547,30]
[398340714,1765538081862,-500.0,0.00040547,30]
[398340715,1765538081875,-500.0,0.00040547,30]
[398340716,1765538081885,-500.0,0.00040547,30]
[398340717,1765538081894,-500.0,0.00040547,30]
[398340718,1765538081904,-868.9,0.00040547,30]
[398340719,1765538081914,-172.41730154,0.00040547,30]
[398340720,1765538081924,-671.73,0.00040547,30]
[398340721,1765538081934,-500.0,0.00040547,30]
[398340722,1765538081944,-2439.55,0.00040547,30]
[398340723,1765538081956,-2828.46,0.00040547,120]
[398340724,1765538081966,-3289.05,0.00040547,30]
[398340725,1765538081976,-5959.38536385,0.00040547,30]
[398340726,1765538081986,-500.0,0.00040547,7]
[398340727,1765538081995,-1876.03,0.00040547,30]
[398340728,1765538082005,-500.0,0.00040547,30]
[398340729,1765538082015,-500.0,0.00040547,30]
[398340730,1765538082024,-500.0,0.00040547,2]
[398340731,1765538082034,-932.972515,0.00040547,30]
[398340732,1765538082044,-168.15043,0.00040547,30]
[398340733,1765538082053,-1953.93417,0.00040547,30]
[398340734,1765538082063,-1767.482813,0.00040547,30]
[398340735,1765538082072,-171.577909,0.00040547,30]
[398340736,1765538082082,-1310.696547,0.00040547,30]
[398340737,1765538082091,-1000.0,0.00040547,120]
[398340738,1765538082100,-271.50284147,0.00040547,10]
[398340739,1765538082110,-1014.43,0.00040547,30]
[398340740,1765538082120,-500.0,0.00040547,30]
[398340741,1765538082130,-298.99739319,0.00040547,2]
[398340742,1765538082139,-1000.0,0.00040547,30]
[398340743,1765538082149,-352.09,0.00040547,2]
[398340744,1765538082159,-645.54,0.00040547,30]
[398340745,1765538082168,-500.0,0.00040547,30]
[398340746,1765538082178,-523.99,0.00040547,120]
[398340747,1765538082193,-500.0,0.00040547,2]
[398340748,1765538082203,-1994.45,0.00040547,30]
[398340749,1765538082214,-2057.12,0.00040547,30]
[398340750,1765538082224,-300.0,0.00040547,2]
[398340751,1765538082234,-500.0,0.00040547,2]
[398340752,1765538082244,-600.0,0.00040548,30]
[398340753,1765538082254,-155.54,0.00040584,120]
[398340754,1765538082263,-174.97926106,0.00040654,2]
[398340755,1765538082273,-6138.0,0.00040662,2]
[398340756,1765538082282,-155.54,0.00040684,120]
[398340757,1765538082292,-401.71,0.000407,120]
[398340758,1765538082301,-425.4,0.000407,120]
[398340759,1765538082310,-2000.0,0.000407,30]
[398340760,1765538082319,-7575.61188727,0.000407,117]
[398340761,1765538082329,-176.36785174,0.00040734,2]
[398340762,1765538082339,-303.39889365,0.00040745,120]
[398340763,1765538082348,-174.97926106,0.00040754,2]
[398340764,1765538082358,-255.0,0.00040776,120]
[398340765,1765538082368,-170.0,0.00040776,120]
[398340766,1765538082377,-155.54,0.00040784,120]
[398340767,1765538082387,-6138.0,0.00040799,2]
[398340768,1765538082396,-4288.38,0.000408,120]
[398340769,1765538082406,-672.45,0.000408,30]
[398340770,1765538082416,-500.0,0.00040821,30]
[398340771,1765538082425,-500.0,0.00040821,30]
[398340772,1765538082435,-500.0,0.00040821,30]
[398340773,1765538082444,-500.0,0.00040821,30]
[398340774,1765538082454,-1824.08,0.00040821,30]
[398340775,1765538082464,-500.0,0.00040821,30]
[398340776,1765538082472,-651.26,0.00040821,30]
[398340777,1765538082482,-500.0,0.00040821,30]
[398340778,1765538082491,-178.82467032,0.00040821,30]
[398340779,1765538082500,-156.80107014,0.00040821,30]
[398340780,1765538082510,-500.0,0.00040821,30]
[398340781,1765538082522,-500.0,0.00040821,30]
[398340782,1765538082531,-768.58,0.00040821,30]
[398340783,1765538082540,-500.0,0.00040821,30]
[398340784,1765538082550,-604.69,0.00040821,30]
[398340785,1765538082565,-500.0,0.00040821,30]
[398340786,1765538082574,-1703.32,0.00040821,30]
[398340787,1765538082584,-601.55,0.00040821,7]
[398340788,1765538082595,-662.42,0.00040821,30]
[398340789,1765538082606,-693.68,0.00040821,30]
[398340790,1765538082624,-500.0,0.00040821,30]
[398340791,1765538082634,-500.0,0.00040821,30]
[398340792,1765538082643,-500.0,0.00040821,30]
[398340793,1765538082653,-500.0,0.00040821,30]
[398340794,1765538082662,-1436.54,0.00040821,30]
[398340795,1765538082671,-500.0,0.00040821,30]
[398340796,1765538082680,-500.0,0.00040821,30]
[398340797,1765538082690,-500.0,0.00040821,30]
[398340798,1765538082699,-500.0,0.00040821,30]
[398340799,1765538082708,-500.0,0.00040821,30]
[398340800,1765538082719,-500.0,0.00040821,30]
[398340801,1765538082729,-500.0,0.00040821,30]
[398340802,1765538082739,-500.0,0.00040821,30]
[398340803,1765538082748,-500.0,0.00040821,30]
[398340804,1765538082758,-698.57,0.00040821,30]
[398340805,1765538082767,-500.0,0.00040821,30]
[398340806,1765538082777,-789.19,0.00040821,30]
[398340807,1765538082787,-500.0,0.00040821,30]
[398340808,1765538082796,-500.0,0.00040821,30]
[398340809,1765538082806,-627.23,0.00040821,30]
[398340810,1765538082815,-500.0,0.00040821,30]
[398340811,1765538082824,-772.34,0.00040821,30]
[398340812,1765538082834,-500.0,0.00040821,30]
[398340813,1765538082844,-500.0,0.00040821,30]
[398340814,1765538082853,-500.0,0.00040821,30]
[398340815,1765538082863,-741.68,0.00040821,30]
[398340816,1765538082875,-545.86,0.00040821,30]
[398340817,1765538082885,-625.45,0.00040821,30]
[398340818,1765538082895,-646.79,0.00040821,30]
[398340819,1765538082906,-646.65,0.00040821,30]
[398340820,1765538082916,-500.0,0.00040821,30]
[398340821,1765538082926,-500.0,0.00040821,30]
[398340822,1765538082941,-794.95,0.00040821,30]
[398340823,1765538082951,-500.0,0.00040821,30]
[398340824,1765538082960,-687.17,0.00040821,30]
[398340825,1765538082970,-500.0,0.00040821,30]
[398340826,1765538082980,-500.0,0.00040821,30]
[398340827,1765538082990,-500.0,0.00040821,30]
[398340828,1765538082999,-885.09,0.00040821,30]
[398340829,1765538083009,-1097.95,0.00040821,30]
[398340830,1765538083019,-500.0,0.00040821,30]
[398340831,1765538083029,-500.0,0.00040821,30]
[398340832,1765538083038,-500.0,0.00040821,30]
[398340833,1765538083049,-837.55,0.00040821,30]
[398340834,1765538083058,-540.22,0.00040821,30]
[398340835,1765538083068,-500.0,0.00040821,30]
[398340836,1765538083079,-519.63,0.00040821,30]
[398340837,1765538083090,-500.0,0.00040821,30]
[398340838,1765538083100,-170.83218692,0.00040821,30]
[398340839,1765538083110,-1294.43,0.00040821,30]
[398340840,1765538083121,-500.0,0.00040821,30]
[398340841,1765538083131,-500.0,0.00040821,30]
[398340842,1765538083142,-1011.88,0.00040821,30]
[398340843,1765538083153,-500.0,0.00040821,30]
[398340844,1765538083163,-500.0,0.00040821,30]
[398340845,1765538083173,-500.0,0.00040821,30]
[398340846,1765538083183,-1196.03,0.00040821,30]
[398340847,1765538083194,-617.95,0.00040821,30]
[398340848,1765538083203,-548.66,0.00040821,30]
[398340849,1765538083213,-500.0,0.00040821,30]
[398340850,1765538083223,-500.0,0.00040821,30]
[398340851,1765538083233,-678.18,0.00040821,30]
[398340852,1765538083243,-166.14107863,0.00040821,30]
[398340853,1765538083253,-500.0,0.00040821,30]
[398340854,1765538083263,-500.0,0.00040821,30]
[398340855,1765538083274,-585.26,0.00040821,30]
[398340856,1765538083284,-500.0,0.00040821,30]
[398340857,1765538083294,-500.0,0.00040821,30]
[398340858,1765538083307,-500.0,0.00040821,30]
[398340859,1765538083317,-510.42791679,0.00040821,30]
[398340860,1765538083326,-500.0,0.00040821,30]
[398340861,1765538083336,-672.38,0.00040821,30]
[398340862,1765538083345,-542.28,0.00040821,30]
[398340863,1765538083355,-500.0,0.00040821,30]
[398340864,1765538083365,-500.0,0.00040821,30]
[398340865,1765538083374,-755.36,0.00040821,30]
[398340866,1765538083383,-1228.59,0.00040821,30]
[398340867,1765538083393,-507.95040184,0.00040821,30]
[398340868,1765538083404,-1439.79,0.00040821,30]
[398340869,1765538083414,-500.0,0.00040821,30]
[398340870,1765538083423,-864.07,0.00040821,30]
[398340871,1765538083432,-500.0,0.00040821,30]
[398340872,1765538083442,-573.95,0.00040821,30]
[398340873,1765538083452,-500.0,0.00040821,30]
[398340874,1765538083462,-500.0,0.00040821,30]
[398340875,1765538083471,-533.54,0.00040821,30]
[398340876,1765538083481,-938.76,0.00040821,30]
[398340877,1765538083493,-500.0,0.00040821,30]
[398340878,1765538083502,-500.0,0.00040821,30]
[398340879,1765538083512,-620.08,0.00040821,30]
[398340880,1765538083522,-775.57,0.00040821,30]
[398340881,1765538083532,-500.0,0.00040821,30]
[398340882,1765538083542,-505.97655553,0.00040821,30]
[398340883,1765538083551,-501.55,0.00040821,30]
[398340884,1765538083561,-500.0,0.00040821,14]
[398340885,1765538083571,-577.07555166,0.00040821,30]
[398340886,1765538083580,-500.0,0.00040821,30]
[398340887,1765538083590,-755.67,0.00040821,30]
[398340888,1765538083599,-503.01,0.00040821,30]
[398340889,1765538083608,-500.0,0.00040821,30]
[398340890,1765538083618,-595.47,0.00040821,30]
[398340891,1765538083627,-517.36,0.00040821,30]
[398340892,1765538083637,-500.0,0.00040821,30]
[398340893,1765538083646,-500.0,0.00040821,30]
[398340894,1765538083656,-500.0,0.00040821,30]
[398340895,1765538083666,-1197.34,0.00040821,30]
[398340896,1765538083676,-609.14,0.00040821,30]
[398340897,1765538083685,-897.9,0.00040821,30]
[398340898,1765538083695,-702.09,0.00040821,30]
[398340899,1765538083704,-663.82,0.00040821,30]
[398340900,1765538083715,-500.0,0.00040821,30]
[398340901,1765538083724,-500.0,0.00040821,30]
[398340902,1765538083735,-500.0,0.00040821,30]
[398340903,1765538083744,-442.84297656,0.00040821,30]
[398340904,1765538083754,-740.86,0.00040821,30]
[398340906,1765538083764,-500.0,0.00040821,30]
[398340907,1765538083774,-500.0,0.00040821,30]
[398340908,1765538083784,-1430.91,0.00040821,30]
[398340909,1765538083793,-412.51180379,0.00040821,30]
[398340910,1765538083803,-1100.71,0.00040821,11]
[398340911,1765538083813,-563.18,0.00040821,30]
[398340912,1765538083823,-1144.71,0.00040821,30]
[398340913,1765538083832,-758.29,0.00040821,30]
[398340914,1765538083842,-500.0,0.00040821,30]
[398340915,1765538083852,-667.94,0.00040821,30]
[398340916,1765538083861,-500.0,0.00040821,30]
[398340917,1765538083876,-500.0,0.00040821,30]
[398340918,1765538083894,-1846.03,0.00040821,30]
[398340919,1765538083905,-500.0,0.00040821,30]
[398340920,1765538083917,-500.0,0.00040821,30]
[398340921,1765538083927,-500.0,0.00040821,30]
[398340922,1765538083936,-422.09834963,0.00040821,30]
[398340923,1765538083948,-500.0,0.00040821,30]
[398340924,1765538083958,-676.5,0.00040821,30]
[398340925,1765538083968,-500.0,0.00040821,30]
[398340926,1765538083978,-500.0,0.00040821,30]
[398340927,1765538083988,-732.08,0.00040821,30]
[398340928,1765538083998,-724.94,0.00040821,30]
[398340929,1765538084008,-500.0,0.00040821,30]
[398340930,1765538084018,-643.49,0.00040821,30]
[398340931,1765538084028,-500.0,0.00040821,30]
[398340932,1765538084038,-509.58805174,0.00040821,30]
[398340933,1765538084048,-1213.64,0.00040821,30]
[398340934,1765538084058,-198.95654868,0.00040821,30]
[398340935,1765538084068,-607.07,0.00040821,30]
[398340936,1765538084079,-750.79,0.00040821,30]
[398340937,1765538084089,-565.7,0.00040821,30]
[398340938,1765538084098,-1215.39,0.00040821,30]
[398340939,1765538084108,-500.0,0.00040821,30]
[398340940,1765538084118,-600.0,0.00040821,30]
[398340941,1765538084128,-500.0,0.00040821,30]
[398340942,1765538084139,-500.0,0.00040821,30]
[398340943,1765538084149,-848.58,0.00040821,30]
[398340944,1765538084158,-500.0,0.00040821,30]
[398340945,1765538084169,-500.0,0.00040821,30]
[398340946,1765538084178,-500.0,0.00040821,30]
[398340947,1765538084188,-753.21,0.00040821,30]
[398340948,1765538084198,-500.0,0.00040821,30]
[398340949,1765538084207,-500.0,0.00040821,30]
[398340950,1765538084217,-500.0,0.00040821,30]
[398340951,1765538084227,-500.0,0.00040821,30]
[398340952,1765538084237,-500.0,0.00040821,30]
[398340953,1765538084246,-552.91,0.00040821,30]
[398340954,1765538084256,-500.0,0.00040821,30]
[398340955,1765538084270,-500.0,0.00040821,30]
[398340956,1765538084280,-795.68,0.00040821,30]
[398340957,1765538084290,-500.0,0.00040821,30]
[398340958,1765538084300,-500.0,0.00040821,30]
[398340959,1765538084310,-692.67,0.00040821,30]
[398340960,1765538084319,-745.98,0.00040821,30]
[398340961,1765538084329,-500.0,0.00040821,30]
[398340962,1765538084339,-500.0,0.00040821,30]
[398340963,1765538084350,-500.0,0.00040821,30]
[398340964,1765538084359,-714.2,0.00040821,30]
[398340965,1765538084369,-500.0,0.00040821,30]
[398340966,1765538084379,-500.0,0.00040821,30]
[398340967,1765538084390,-500.0,0.00040821,30]
[398340968,1765538084400,-500.0,0.00040821,30]
[398340969,1765538084410,-990.89,0.00040821,30]
[398340970,1765538084420,-500.0,0.00040821,30]
[398340971,1765538084429,-500.0,0.00040821,30]
[398340972,1765538084439,-1141.33,0.00040821,30]
[398340973,1765538084449,-500.0,0.00040821,30]
[398340974,1765538084459,-500.0,0.00040821,30]
[398340975,1765538084469,-500.0,0.00040821,30]
[398340976,1765538084478,-500.0,0.00040821,30]
[398340977,1765538084488,-500.0,0.00040821,30]
[398340978,1765538084498,-736.93,0.00040821,30]
[398340979,1765538084915,-500.0,0.00040821,30]
[398340980,1765538084925,-500.0,0.00040821,30]
[398340981,1765538084934,-515.77180485,0.00040821,30]
[398340982,1765538084944,-1026.69,0.00040821,30]
[398340983,1765538084954,-866.2,0.00040821,30]
[398340984,1765538084964,-500.0,0.00040821,30]
[398340985,1765538084973,-500.0,0.00040821,30]
[398340986,1765538084983,-510.19,0.00040821,30]
[398340987,1765538084993,-500.0,0.00040821,30]
[398340988,1765538085003,-709.46,0.00040821,30]
[398340989,1765538085012,-755.64,0.00040821,30]
[398340990,1765538085022,-392.40243221,0.00040821,30]
[398340991,1765538085031,-1337.95,0.00040821,30]
[398340992,1765538085041,-500.0,0.00040821,30]
[398340993,1765538085051,-3627.22,0.00040821,30]
[398340994,1765538085065,-750.49,0.00040821,30]
[398340995,1765538085075,-500.0,0.00040821,30]
[398340996,1765538085085,-856.96,0.00040821,30]
[398340997,1765538085095,-1759.45,0.00040821,30]
[398340998,1765538085105,-500.0,0.00040821,30]
[398340999,1765538085115,-524.23,0.00040821,30]
[398341000,1765538085125,-500.0,0.00040821,30]
[398341001,1765538085135,-500.54,0.00040821,30]
[398341002,1765538085145,-1039.78,0.00040821,30]
[398341003,1765538085155,-730.61,0.00040821,30]
[398341004,1765538085165,-500.0,0.00040821,30]
[398341005,1765538085175,-615.84,0.00040821,30]
[398341006,1765538085184,-647.65,0.00040821,30]
[398341007,1765538085194,-906.8,0.00040821,30]
[398341008,1765538085204,-1472.62,0.00040821,30]
[398341009,1765538085214,-551.86,0.00040821,30]
[398341010,1765538085224,-500.0,0.00040821,30]
[398341011,1765538085234,-500.0,0.00040821,30]
[398341012,1765538085243,-500.0,0.00040821,30]
[398341013,1765538085252,-500.0,0.00040821,30]
[398341014,1765538085262,-2737.4,0.00040821,30]
[398341015,1765538085277,-1372.17,0.00040821,30]
[398341016,1765538085287,-500.0,0.00040821,30]
[398341017,1765538085297,-500.0,0.00040821,30]
[398341018,1765538085307,-500.0,0.00040821,30]
[398341019,1765538085316,-500.0,0.00040821,30]
[398341020,1765538085326,-500.0,0.00040821,30]
[398341021,1765538085336,-591.78546012,0.00040821,30]
[398341022,1765538085346,-500.0,0.00040821,30]
[398341023,1765538085356,-500.0,0.00040821,30]
[398341024,1765538085366,-2430.46,0.00040821,30]
[398341025,1765538085376,-500.0,0.00040821,30]
[398341026,1765538085386,-500.0,0.00040821,30]
[398341027,1765538085396,-500.0,0.00040821,30]
[398341028,1765538085405,-1139.75,0.00040821,30]
[398341029,1765538085415,-1401.35,0.00040821,30]
[398341030,1765538085424,-500.0,0.00040821,30]
[398341031,1765538085434,-800.13,0.00040821,30]
[398341032,1765538085444,-500.0,0.00040821,30]
[398341033,1765538085454,-1445.96,0.00040821,30]
[398341034,1765538085464,-500.0,0.00040821,30]
[398341035,1765538085474,-918.45,0.00040821,30]
[398341036,1765538085484,-1070.7,0.00040821,30]
[398341037,1765538085493,-500.0,0.00040821,30]
[398341038,1765538085503,-420.73361748,0.00040821,30]
[398341039,1765538085513,-500.0,0.00040821,30]
[398341040,1765538085523,-500.0,0.00040821,30]
[398341041,1765538085533,-2437.96,0.00040821,30]
[398341042,1765538085543,-500.0,0.00040821,30]
[398341043,1765538085552,-500.0,0.00040821,30]
[398341044,1765538085562,-500.0,0.00040821,30]
[398341045,1765538085571,-592.87,0.00040821,30]
[398341046,1765538085581,-500.0,0.00040821,30]
[398341047,1765538085590,-500.0,0.00040821,30]
[398341048,1765538085600,-500.0,0.00040821,30]
[398341049,1765538085610,-1588.94,0.00040821,30]
[398341050,1765538085620,-541.31258962,0.00040821,30]
[398341051,1765538085630,-537.45,0.00040821,30]
[398341052,1765538085640,-500.0,0.00040821,30]
[398341053,1765538085650,-522.96,0.00040821,30]
[398341054,1765538085659,-500.0,0.00040821,30]
[398341055,1765538085669,-1096.52,0.00040821,30]
[398341056,1765538085679,-500.0,0.00040821,30]
[398341057,1765538085688,-500.0,0.00040821,30]
[398341058,1765538085698,-542.04,0.00040821,30]
[398341059,1765538085708,-637.83,0.00040821,30]
[398341060,1765538085719,-698.44,0.00040821,30]
[398341061,1765538085729,-648.33969964,0.00040821,30]
[398341062,1765538085739,-660.2,0.00040821,30]
[398341063,1765538085749,-500.0,0.00040821,30]
[398341064,1765538085759,-500.0,0.00040821,30]
[398341065,1765538085769,-289.30708093,0.00040821,30]
[398341066,1765538085779,-500.0,0.00040821,30]
[398341067,1765538085789,-500.0,0.00040821,30]
[398341068,1765538085799,-1065.82,0.00040821,30]
[398341069,1765538085817,-619.68144213,0.00040821,30]
[398341070,1765538085830,-500.0,0.00040821,30]
[398341071,1765538085841,-500.0,0.00040821,30]
[398341072,1765538085851,-2027.17,0.00040821,30]
[398341073,1765538085861,-663.04,0.00040821,30]
[398341074,1765538085875,-500.0,0.00040821,30]
[398341075,1765538085885,-500.0,0.00040821,30]
[398341076,1765538085895,-500.0,0.00040821,30]
[398341077,1765538085905,-500.0,0.00040821,30]
[398341078,1765538085915,-500.0,0.00040821,30]
[398341079,1765538085925,-500.0,0.00040821,30]
[398341080,1765538085936,-500.0,0.00040821,30]
[398341081,1765538085946,-500.0,0.00040821,30]
[398341082,1765538085958,-500.0,0.00040821,30]
[398341083,1765538085968,-1526.42,0.00040821,30]
[398341084,1765538085978,-500.0,0.00040821,30]
[398341085,1765538085988,-1034.23,0.00040821,30]
[398341086,1765538085998,-500.0,0.00040821,30]
[398341087,1765538086008,-500.0,0.00040821,30]
[398341088,1765538086018,-500.0,0.00040821,30]
[398341089,1765538086028,-604.96,0.00040821,30]
[398341090,1765538086039,-169.13667113,0.00040821,30]
[398341091,1765538086049,-500.0,0.00040821,30]
[398341092,1765538086059,-500.0,0.00040821,30]
[398341093,1765538086069,-500.0,0.00040821,30]
[398341094,1765538086080,-500.0,0.00040821,30]
[398341095,1765538086090,-526.63,0.00040821,30]
[398341096,1765538086102,-500.0,0.00040821,30]
[398341097,1765538086112,-1577.6,0.00040821,30]
[398341098,1765538086123,-500.0,0.00040821,30]
[398341099,1765538086133,-500.0,0.00040821,30]
[398341100,1765538086143,-500.0,0.00040821,30]
[398341101,1765538086153,-500.0,0.00040821,30]
[398341102,1765538086163,-1132.8,0.00040821,30]
[398341103,1765538086173,-705.52,0.00040821,30]
[398341104,1765538086183,-570.07,0.00040821,30]
[398341105,1765538086194,-961.9,0.00040821,30]
[398341106,1765538086204,-500.0,0.00040821,30]
[398341107,1765538086214,-735.82,0.00040821,30]
[398341108,1765538086225,-749.42,0.00040821,30]
[398341109,1765538086235,-1191.88,0.00040821,30]
[398341110,1765538086245,-522.47,0.00040821,30]